bitfinex-derivatives/quotes_ETHF0:USTF0_20251223
["timestamp","ask_amount","ask_price","bid_price","bid_amount"]
[1766518613764,0.00511448,2937.5,2936.9,0.00928698]
[1766518614159,1.448e-05,2937.5,2936.9,0.00928698]
[1766518615662,1.448e-05,2937.5,2936.9,0.00530037]
[1766518615866,1.448e-05,2937.5,2936.7,3.407]
[1766518616666,1.448e-05,2937.5,2935.9,0.94710276]
[1766518616868,1.448e-05,2937.5,2936.4,0.00800989]
[1766518617063,1.448e-05,2937.5,2936.5,3.407]
[1766518618571,0.1703,2937.3,2936.5,3.407]
[1766518618765,3.5773,2937.3,2936.4,0.00800989]
[1766518618972,0.17031,2937.2,2936.4,3.41500989]
[1766518621072,6.503,2937.1,2934.9,34.24044]
[1766518621270,0.17035,2936.6,2935.0,17.916]
[1766518621664,0.17035,2936.6,2935.2,0.94710276]
[1766518621967,3.407,2936.7,2935.2,0.94710276]
[1766518622172,9.91,2937.1,2935.7,0.00511448]
[1766518622365,0.17031,2937.2,2935.8,9.401]
[1766518622567,0.17031,2937.2,2936.0,0.94710276]
[1766518622767,0.17031,2937.2,2936.1,3.407]
[1766518623668,0.17032,2937.1,2936.1,3.406]
[1766518623971,3.406,2937.0,2936.1,3.406]
[1766518624674,3.406,2937.0,2936.0,0.1379]
[1766518624874,3.406,2937.0,2936.1,3.406]
[1766518625369,3.406,2937.0,2935.7,0.00511448]
[1766518625570,3.406,2937.0,2935.8,3.406]
[1766518626369,0.17033,2936.9,2935.8,3.406]
[1766518626665,0.17033,2936.9,2935.7,0.11721448]
[1766518626869,0.17033,2936.9,2935.8,3.406]
[1766518628781,0.17034,2936.8,2935.8,3.406]
[1766518629078,3.406,2936.7,2935.8,3.406]
[1766518630682,3.57634,2936.7,2935.8,3.406]
[1766518631083,44.37634,2936.7,2935.8,3.406]
[1766518635593,3.57634,2936.7,2935.8,3.406]
[1766518638092,3.57634,2936.7,2935.7,0.00511448]
[1766518638299,3.57634,2936.7,2935.8,3.407]
[1766518639095,3.406,2936.7,2935.8,3.407]
[1766518639290,1.8626,2936.7,2935.8,3.407]
[1766518639489,3.407,2937.0,2935.8,3.407]
[1766518642699,0.17031,2937.2,2935.8,3.407]
[1766518642996,3.407,2937.1,2935.8,3.407]
[1766518643197,3.407,2937.1,2935.8,4.35410276]
[1766518644587,3.407,2937.1,2935.9,16.364]
[1766518645999,3.407,2937.1,2935.9,17.31110276]
[1766518646890,0.1,2937.4,2935.9,17.31110276]
[1766518647086,0.1,2937.4,2935.9,16.364]
[1766518647292,0.2703,2937.4,2935.9,16.364]
[1766518647488,0.2703,2937.4,2935.8,0.94710276]
[1766518647694,0.17031,2937.3,2935.9,17.917]
[1766518647893,3.406,2937.2,2935.9,17.917]
[1766518648100,3.406,2937.2,2935.8,0.1738]
[1766518648289,3.406,2937.2,2935.7,0.00511448]
[1766518648290,0.17032,2937.1,2935.9,3.607]
[1766518649088,3.57632,2937.1,2935.9,3.607]
[1766518655998,3.57632,2937.1,2935.9,5.994]
[1766518656198,3.57632,2937.1,2935.7,0.00511448]
[1766518656404,3.57632,2937.1,2935.8,3.483]
[1766518657097,3.406,2937.1,2935.7,0.17861448]
[1766518657298,0.17034,2936.8,2935.8,3.406]
[1766518657504,3.406,2936.7,2935.8,3.406]
[1766518658502,1.448e-05,2937.5,2935.8,3.406]
[1766518658503,3.406,2936.9,2935.8,3.406]
[1766518658901,0.1734,2937.4,2935.8,3.406]
[1766518659101,3.406,2937.3,2935.8,3.406]
[1766518661007,3.406,2937.3,2936.0,0.94710276]
[1766518661298,6.86271448,2937.5,2935.7,0.17851448]
[1766518661299,3.406,2937.4,2935.7,0.00511448]
[1766518661706,0.17031,2937.2,2935.8,8.419]
[1766518661903,9.928,2937.1,2935.8,8.419]
[1766518662501,9.928,2937.1,2935.7,0.17851448]
[1766518662708,9.928,2937.1,2935.8,9.399]
[1766518664614,3.406,2937.2,2935.8,9.399]
[1766518665714,3.406,2937.2,2935.7,0.17851448]
[1766518665906,3.406,2937.2,2935.8,3.509]
[1766518667812,3.406,2937.2,2935.9,9.399]
[1766518669710,3.57631,2937.2,2935.8,0.1733]
[1766518669917,3.57631,2937.2,2935.9,3.606]
[1766518671197,3.57631,2937.2,2935.7,0.00511448]
[1766518671401,3.57631,2937.2,2935.8,6.523]
[1766518672110,0.17031,2937.2,2935.8,6.523]
[1766518672410,3.406,2937.1,2935.8,6.523]
[1766518672611,1.448e-05,2937.5,2935.8,6.523]
[1766518672812,3.406,2937.4,2935.8,6.523]
[1766518673908,3.406,2937.4,2935.8,7.98453225]
[1766518675312,3.406,2937.4,2935.8,6.523]
[1766518678816,1.448e-05,2937.5,2936.1,1.63190225]
[1766518679017,1.71331448,2937.5,2936.2,17.914]
[1766518679208,1.71331448,2937.5,2936.3,3.406]
[1766518681309,1.71331448,2937.5,2936.4,9.399]
[1766518681514,1.71331448,2937.5,2936.5,3.406]
[1766518682414,1.71331448,2937.5,2936.6,3.406]
[1766518682610,3.57631448,2937.5,2936.6,3.406]
[1766518682812,0.17031448,2937.5,2936.6,3.406]
[1766518683016,3.57631448,2937.5,2936.6,3.406]
[1766518683417,3.40601448,2937.5,2936.6,3.406]
[1766518683620,1.448e-05,2937.5,2936.6,4.86753225]
[1766518683917,3.406,2938.1,2936.6,4.86753225]
[1766518684114,0.0008,2940.0,2937.0,1.46153225]
[1766518684115,0.0617,2938.4,2937.0,1.46153225]
[1766518684413,3.406,2938.4,2937.1,17.914]
[1766518684811,3.406,2938.4,2937.0,0.0618]
[1766518685116,0.0051056,2938.0,2937.4,0.0051056]
[1766518685317,0.0051056,2938.0,2937.5,3.406]
[1766518686406,0.0051056,2938.0,2937.4,0.00911716]
[1766518687115,0.0051056,2938.0,2936.7,0.0618]
[1766518687305,0.0051056,2938.0,2936.7,3.406]
[1766518688014,0.95213843,2938.0,2936.8,0.94703283]
[1766518688208,0.95213843,2938.0,2937.1,0.0051056]
[1766518688411,0.17027,2937.9,2937.1,0.0051056]
[1766518688614,3.406,2937.8,2937.1,0.0051056]
[1766518689813,4.35303283,2937.8,2937.1,0.0051056]
[1766518690014,4.52331283,2937.8,2936.8,0.00256964]
[1766518690415,3.57628,2937.8,2936.8,0.00256964]
[1766518691110,3.57628,2937.8,2937.0,0.0051056]
[1766518691521,3.57628,2937.8,2937.0,3.4111056]
[1766518692718,3.406,2937.8,2937.1,0.94703283]
[1766518692929,3.406,2937.8,2937.2,0.94703283]
[1766518693113,3.406,2937.8,2937.3,3.406]
[1766518693314,0.0051056,2938.0,2937.3,3.406]
[1766518694924,0.0051056,2938.0,2937.6,0.94703283]
[1766518695231,5.6e-06,2938.0,2937.7,3.405]
[1766518699030,3.405,2938.5,2937.8,3.405]
[1766518699223,6.68321,2938.9,2938.2,0.94703283]
[1766518699424,0.17021,2938.9,2938.2,4.35203283]
[1766518699628,0.94703283,2938.9,2937.9,5.635]
[1766518699823,0.94703283,2938.9,2938.0,3.405]
[1766518700019,0.0051056,2938.7,2938.0,3.405]
[1766518702428,0.00336966,2938.9,2938.0,3.405]
[1766518703428,0.0051056,2938.7,2938.0,3.405]
[1766518704333,0.00336966,2938.9,2938.0,3.405]
[1766518705425,3.405,2939.2,2938.0,3.405]
[1766518706330,0.00510265,2938.9,2938.0,3.405]
[1766518708627,0.00510265,2938.9,2938.1,5.989]
[1766518708829,0.00510265,2938.9,2938.2,3.404]
[1766518711935,0.00510265,2938.9,2937.6,1.46012831]
[1766518712329,0.00510265,2938.9,2937.7,12.635]
[1766518712728,0.00510265,2938.9,2937.8,5.988]
[1766518712931,0.00510265,2938.9,2937.9,3.404]
[1766518714030,3.57856964,2939.2,2937.9,3.404]
[1766518714226,3.40836964,2939.2,2937.9,3.404]
[1766518714424,0.00436964,2939.2,2938.0,1.46012831]
[1766518714636,3.57418,2939.6,2938.0,1.46012831]
[1766518715029,3.57418,2939.6,2938.5,0.0051056]
[1766518715338,3.57418,2939.6,2938.6,9.392]
[1766518715539,3.57804749,2939.6,2938.6,9.392]
[1766518719942,4.52404682,2939.6,2938.7,3.404]
[1766518720135,3.57804749,2939.6,2938.7,3.404]
[1766518720336,0.94599933,2939.4,2938.5,0.0051056]
[1766518720642,0.94599933,2939.0,2938.5,3.4091056]
[1766518720830,0.94599933,2938.8,2938.0,3.404]
[1766518721137,0.94599933,2938.8,2937.9,3.404]
[1766518721138,3.404,2938.7,2937.9,3.404]
[1766518721334,0.17021,2939.0,2938.1,0.94599933]
[1766518721534,3.404,2939.3,2938.3,0.94599933]
[1766518721732,0.0051056,2939.1,2938.4,5.205]
[1766518721936,0.95110493,2939.1,2938.5,0.0051056]
[1766518722637,0.0051056,2939.1,2938.5,0.0051056]
[1766518730743,3.40786749,2939.6,2938.5,0.0051056]
[1766518731048,0.0008,2940.0,2939.2,0.94599933]
[1766518731252,0.0008,2940.0,2939.3,3.404]
[1766518732128,0.00481461,2940.0,2939.3,3.40825724]
[1766518732342,0.94599933,2939.8,2939.1,3.404]
[1766518732934,0.94599933,2939.8,2938.5,0.0051056]
[1766518733228,0.94599933,2939.8,2938.6,3.473]
[1766518733438,3.404,2939.9,2938.6,3.47568479]
[1766518733632,4.34999933,2939.9,2938.6,3.47568479]
[1766518734028,3.404,2939.9,2938.6,3.47568479]
[1766518734438,3.57415,2939.9,2938.6,0.00268479]
[1766518734740,3.57415,2939.9,2938.7,3.404]
[1766518735542,7.70515,2939.9,2938.7,3.404]
[1766518736236,7.535,2939.9,2938.6,0.00268479]
[1766518736838,0.17019,2939.4,2938.6,0.00268479]
[1766518737142,3.403,2939.3,2938.6,0.00268479]
[1766518737743,3.403,2939.3,2938.5,0.0051056]
[1766518738944,3.403,2939.3,2938.5,0.0085633]
[1766518740246,10.84480158,2939.3,2937.6,8.51]
[1766518740450,0.17021,2939.0,2937.7,8.85]
[1766518740749,3.404,2938.9,2937.7,8.85]
[1766518741449,0.0051056,2938.6,2938.0,0.0051056]
[1766518741650,0.0051056,2938.6,2938.1,3.404]
[1766518742945,3.404,2938.9,2938.1,3.404]
[1766518746654,3.404,2939.0,2938.1,3.404]
[1766518746954,3.404,2939.2,2938.1,3.404]
[1766518749153,0.94580158,2939.1,2938.0,0.0051056]
[1766518749344,0.17021,2939.0,2938.0,0.0051056]
[1766518749659,3.404,2938.9,2938.0,0.0051056]
[1766518767366,0.1702,2939.1,2938.0,0.0051056]
[1766518769562,6.488,2939.5,2938.0,8.5161056]
[1766518769763,3.57417,2939.7,2938.0,8.5161056]
[1766518769968,3.404,2939.7,2938.1,0.94580158]
[1766518770166,0.00481461,2940.0,2938.5,0.94580158]
[1766518770362,0.00481461,2940.0,2938.6,3.404]
[1766518773867,0.00481461,2940.0,2938.9,0.94580158]
[1766518774062,0.00481461,2940.0,2938.6,4.34980158]
[1766518774063,0.00481461,2940.0,2939.0,17.899]
[1766518777673,3.404,2940.5,2939.0,17.899]
[1766518777971,3.404,2940.5,2939.2,0.94580158]
[1766518778166,3.403,2940.9,2939.6,0.0051056]
[1766518778372,3.403,2941.3,2939.7,8.395]
[1766518778568,3.40736839,2941.3,2939.8,8.509]
[1766518778867,3.40736839,2941.3,2939.8,8.51231368]
[1766518779569,3.40736839,2941.3,2939.9,9.388]
[1766518779570,0.17008,2941.2,2939.9,9.388]
[1766518780074,0.17009,2941.1,2940.0,9.388]
[1766518780269,3.403,2941.0,2940.0,9.388]
[1766518781474,3.403,2941.0,2940.1,9.388]
[1766518782864,3.403,2941.0,2939.8,0.00331368]
[1766518783064,9.55180158,2941.0,2939.9,3.403]
[1766518783271,8.77609,2941.0,2939.9,3.403]
[1766518785669,8.77609,2941.0,2939.8,0.00331368]
[1766518785873,8.77609,2941.0,2939.9,3.402]
[1766518786179,8.77609,2941.0,2939.8,0.00331368]
[1766518786375,8.77609,2941.0,2939.9,3.402]
[1766518786775,8.77609,2941.0,2939.8,0.00331368]
[1766518786976,8.77609,2941.0,2939.9,3.402]
[1766518789080,8.77609,2941.0,2939.8,1.368e-05]
[1766518789278,0.1701,2940.9,2939.8,1.368e-05]
[1766518789484,0.1701,2940.9,2939.8,1.01191368]
[1766518790388,0.1701,2940.8,2939.8,1.01548584]
[1766518790587,3.402,2940.7,2939.8,1.01548584]
[1766518791696,0.00436839,2941.3,2939.8,2.90848584]
[1766518792290,0.17003,2942.0,2940.3,0.94580158]
[1766518792487,3.57203,2942.0,2940.4,17.892]
[1766518793299,3.40541747,2942.0,2940.5,17.892]
[1766518793594,3.40541747,2942.0,2940.6,11.908]
[1766518794801,3.40541747,2942.0,2940.5,0.0484]
[1766518795100,3.40541747,2942.0,2940.6,17.893]
[1766518795796,3.40541747,2942.0,2940.5,0.0484]
[1766518795998,0.94461586,2941.7,2940.6,12.576]
[1766518796698,0.94461586,2941.8,2940.6,12.576]
[1766518797294,4.52007333,2942.0,2940.7,0.94461586]
[1766518797891,0.17004,2941.9,2940.8,8.27561586]
[1766518798091,3.40541747,2942.0,2941.1,0.94972146]
[1766518798294,0.00341747,2942.0,2941.2,3.402]
[1766518798490,0.94461586,2942.8,2941.2,3.402]
[1766518798491,0.16996,2943.3,2941.3,3.641]
[1766518798693,0.94461586,2942.9,2942.0,0.0051056]
[1766518798903,0.94461586,2942.5,2942.0,0.0051056]
[1766518799095,0.94461586,2942.1,2940.1,0.17014]
[1766518799401,0.94461586,2941.8,2940.6,0.94461586]
[1766518799601,0.94461586,2941.8,2940.7,3.499]
[1766518799791,3.40607613,2942.1,2940.8,0.94461586]
[1766518799996,0.94461586,2942.0,2940.8,0.94461586]
[1766518800197,0.0051056,2941.7,2941.1,0.0051056]
[1766518800402,0.0051056,2941.7,2941.2,3.401]
[1766518800702,0.94461586,2941.6,2941.1,3.401]
[1766518800899,0.0051056,2941.7,2941.1,3.401]
[1766518801697,0.0051056,2941.7,2941.1,3.4061056]
[1766518802302,0.0051056,2941.7,2941.1,5.98842533]
[1766518802498,0.0051056,2941.7,2941.1,0.00242533]
[1766518802700,3.4061056,2941.7,2940.8,3.401]
[1766518803003,3.4061056,2941.7,2940.7,3.401]
[1766518803600,3.4061056,2941.7,2940.9,0.0051056]
[1766518803804,3.4061056,2941.7,2940.1,0.00356979]
[1766518804002,4.043,2941.6,2940.2,3.401]
[1766518804900,4.043,2941.6,2940.6,0.0051056]
[1766518805499,0.17006,2941.5,2940.6,0.0051056]
[1766518805800,3.401,2941.4,2940.6,0.0051056]
[1766518807008,3.401,2941.4,2940.3,3.695]
[1766518807209,0.17008,2941.3,2940.4,3.401]
[1766518808012,0.17008,2941.3,2940.6,0.0051056]
[1766518808894,3.4496,2941.4,2940.1,0.00356979]
[1766518809104,0.1701,2940.8,2939.9,3.401]
[1766518809308,3.57111,2940.7,2939.9,3.401]
[1766518810104,0.17011,2940.7,2940.0,0.00340374]
[1766518811110,0.17011,2940.7,2939.9,0.00259203]
[1766518812709,0.17012,2940.5,2939.7,3.401]
[1766518812906,0.17012,2940.5,2939.3,5.591]
[1766518812907,3.401,2940.4,2939.3,5.591]
[1766518813113,0.0051056,2940.1,2939.4,3.401]
[1766518813311,0.0051056,2940.1,2938.6,0.36576]
[1766518813606,0.0051056,2940.1,2939.2,0.1169]
[1766518813810,0.0051056,2940.1,2939.3,4.551]
[1766518815010,0.0051056,2940.1,2939.2,0.1169]
[1766518815204,0.0051056,2940.1,2939.3,9.387]
[1766518816011,0.0051056,2940.1,2938.6,0.36824513]
[1766518816313,3.5772456,2940.1,2938.6,0.36824513]
[1766518816507,0.17015,2940.0,2938.6,0.36824513]
[1766518816707,0.17354065,2940.0,2938.7,3.402]
[1766518817017,0.17017,2939.6,2938.7,3.402]
[1766518817313,3.402,2939.5,2938.7,3.402]
[1766518821308,3.402,2939.5,2938.6,0.36824513]
[1766518821509,0.17019,2939.4,2938.3,3.402]
[1766518822719,0.17019,2939.4,2938.3,3.40466413]
[1766518822919,0.17019,2939.4,2938.4,5.574]
[1766518824912,0.17019,2939.4,2938.3,0.00266413]
[1766518825114,0.17019,2939.4,2938.4,3.403]
[1766518825513,0.17019,2939.4,2938.3,0.12696413]
[1766518825715,0.17019,2939.4,2938.4,3.403]
[1766518826220,3.403,2939.3,2938.4,3.403]
[1766518827724,3.403,2939.3,2938.5,3.403]
[1766518829820,0.1702,2939.2,2938.3,0.00266413]
[1766518830015,0.17021,2939.0,2938.3,0.00266413]
[1766518830219,3.403,2938.9,2938.3,0.00266413]
[1766518831226,3.403,2939.2,2938.3,0.00266413]
[1766518832026,6.483,2939.6,2938.3,0.00266413]
[1766518832027,3.403,2939.5,2938.3,0.00266413]
[1766518834032,0.0051056,2940.1,2938.8,1.45707176]
[1766518834232,0.0051056,2940.1,2938.9,3.983]
[1766518836030,0.0051056,2940.1,2939.0,17.899]
[1766518840228,0.0051056,2940.1,2938.4,1.62731176]
[1766518840229,0.0051056,2940.1,2938.4,0.17024]
[1766518840429,3.40639065,2940.0,2938.5,17.899]
[1766518842542,3.40639065,2940.0,2938.6,17.903]
[1766518844142,3.40639065,2940.0,2938.4,0.17024]
[1766518844342,3.40639065,2940.0,2938.5,17.907]
[1766518848748,3.40639065,2940.0,2938.4,0.29444]
[1766518848950,3.40639065,2940.0,2938.5,12.7]
[1766518849143,3.40639065,2940.0,2938.4,0.17024]
[1766518849449,3.40639065,2940.0,2938.5,12.63]
[1766518849943,3.40639065,2940.0,2938.4,0.29444]
[1766518850151,3.403,2939.9,2938.5,12.716]
[1766518850448,0.00339065,2940.0,2938.5,12.716]
[1766518852050,0.00339065,2940.0,2938.5,12.88623]
[1766518855445,5.03,2940.6,2938.5,12.88623]
[1766518855446,0.1701,2940.9,2939.3,1.45707176]
[1766518855646,3.403,2941.2,2939.4,12.749]
[1766518856552,0.0051056,2940.6,2940.0,0.0051056]
[1766518856856,0.0051056,2940.6,2940.1,9.42]
[1766518858047,0.0051056,2940.6,2940.2,9.42]
[1766518858248,0.0051056,2940.6,2940.3,9.42]
[1766518858653,0.0026802,2940.6,2940.3,9.42]
[1766518858858,0.0026802,2940.6,2940.0,0.0051056]
[1766518859052,0.0026802,2940.6,2940.1,9.418]
[1766518859453,3.57548115,2941.2,2940.1,9.418]
[1766518859656,0.17248115,2941.2,2940.0,0.0815056]
[1766518859955,0.17248115,2941.2,2940.1,3.474]
[1766518860556,0.0051056,2940.9,2940.1,3.474]
[1766518860744,5.6e-06,2940.9,2940.1,3.474]
[1766518860948,1.15e-06,2941.2,2940.1,3.474]
[1766518862058,0.0051056,2940.9,2940.1,3.474]
[1766518863463,5.6e-06,2940.9,2940.1,3.474]
[1766518865466,5.6e-06,2940.9,2940.0,0.0051056]
[1766518865662,5.6e-06,2940.9,2940.1,3.414]
[1766518868960,5.6e-06,2940.9,2940.0,0.0051056]
[1766518869169,5.6e-06,2940.9,2940.2,6.014]
[1766518870971,5.6e-06,2940.9,2939.6,8.505]
[1766518871271,5.6e-06,2940.9,2939.7,9.416]
[1766518871463,3.402,2940.8,2938.9,34.02]
[1766518871663,3.402,2940.8,2939.0,17.921]
[1766518872064,3.402,2940.8,2939.6,0.0051056]
[1766518872265,3.402,2940.8,2939.7,9.417]
[1766518872465,3.5721,2940.8,2939.7,9.417]
[1766518873473,0.1701,2940.8,2939.7,9.417]
[1766518873672,3.402,2940.7,2939.7,9.417]
[1766518874467,5.6e-06,2940.9,2940.0,0.0051056]
[1766518874670,5.6e-06,2940.9,2939.8,0.0051056]
[1766518874865,5.6e-06,2940.9,2939.9,3.436]
[1766518875463,5.6e-06,2940.9,2939.6,0.0051056]
[1766518875664,5.6e-06,2940.9,2939.7,3.402]
[1766518875869,5.6e-06,2940.9,2939.8,6.015]
[1766518880178,5.6e-06,2940.9,2939.9,0.0051056]
[1766518880377,5.6e-06,2940.9,2940.0,3.402]
[1766518884182,5.6e-06,2940.9,2940.0,3.4071056]
[1766518884578,5.6e-06,2940.9,2940.0,3.402]
[1766518884785,5.6e-06,2940.9,2940.5,0.0051056]
[1766518885082,5.6e-06,2940.9,2940.6,3.402]
[1766518886682,5.6e-06,2940.9,2940.5,0.00429332]
[1766518886887,5.6e-06,2940.9,2940.6,3.4071056]
[1766518889188,5.6e-06,2940.9,2940.6,3.402]
[1766518889388,5.6e-06,2940.9,2940.6,3.4071056]
[1766518890683,5.6e-06,2940.9,2940.5,0.00429332]
[1766518890886,5.6e-06,2940.9,2940.5,3.41139892]
[1766518892379,5.6e-06,2940.9,2940.5,6.1163056]
[1766518892695,5.6e-06,2940.9,2940.4,4.20340348]
[1766518893186,5.6e-06,2940.9,2940.3,3.401]
[1766518893391,5.6e-06,2940.9,2940.3,3.40469116]
[1766518908502,5.6e-06,2940.9,2940.3,0.00369116]
[1766518910506,5.6e-06,2940.9,2940.4,3.401]
[1766518910696,5.6e-06,2940.9,2940.5,5.857]
[1766518910896,3.401,2941.6,2940.5,5.857]
[1766518911093,0.17004,2941.9,2940.5,5.857]
[1766518911297,3.401,2941.8,2940.5,5.857]
[1766518911905,0.0051056,2941.4,2940.5,5.857]
[1766518912902,0.0051056,2941.4,2940.6,6.012]
[1766518913108,0.0051056,2941.4,2940.6,9.413]
[1766518914309,0.0051056,2941.4,2940.6,3.401]
[1766518916008,0.0051056,2941.4,2940.5,6.012]
[1766518916208,0.0051056,2941.4,2940.3,0.00369116]
[1766518916513,0.0051056,2941.4,2940.4,9.413]
[1766518916714,0.0051056,2941.4,2940.5,3.401]
[1766518916915,0.0051056,2941.4,2940.3,0.34659116]
[1766518917118,0.0051056,2941.4,2940.4,9.413]
[1766518918110,0.0051056,2941.4,2940.4,6.012]
[1766518918317,0.0051056,2941.4,2940.5,3.401]
[1766518921613,0.94469323,2941.1,2940.3,0.00369116]
[1766518921820,3.401,2941.0,2940.3,3.40469116]
[1766518923123,0.17009,2941.1,2940.3,3.40469116]
[1766518923322,3.401,2941.0,2940.3,3.40469116]
[1766518925223,3.57109,2941.1,2940.3,3.40469116]
[1766518925417,0.17009,2941.1,2940.3,3.40469116]
[1766518925722,0.1701,2940.8,2940.3,0.00369116]
[1766518925925,3.5711,2940.8,2940.3,0.00369116]
[1766518928122,0.1701,2940.8,2940.3,0.00369116]
[1766518933422,1.11479323,2940.8,2939.6,0.94979883]
[1766518933624,1.11479323,2940.8,2939.7,4.267]
[1766518933920,0.1701,2940.8,2939.8,0.94469323]
[1766518934120,3.5711,2940.8,2939.8,0.94469323]
[1766518934523,3.5711,2940.8,2939.8,0.94862526]
[1766518935020,3.5711,2940.8,2940.0,0.94469323]
[1766518935221,3.5711,2940.8,2940.1,3.402]
[1766518935413,0.1701,2940.8,2940.1,3.402]
[1766518938322,0.1701,2940.8,2939.8,0.00393203]
[1766518938620,3.402,2940.9,2939.9,8.875]
[1766518938820,3.402,2940.9,2940.0,0.94469323]
[1766518950530,3.402,2940.9,2940.2,0.94469323]
[1766518950724,3.402,2940.9,2940.3,9.412]
[1766518954320,0.0051056,2941.4,2940.6,0.94469323]
[1766518954525,0.0051056,2941.4,2940.7,3.402]
[1766518963744,3.57420242,2941.8,2941.0,0.94469323]
[1766518963935,3.401,2941.9,2941.2,0.94469323]
[1766518964132,3.401,2941.9,2941.1,3.401]
[1766518964937,3.40343047,2941.9,2941.2,0.0051056]
[1766518965141,0.0051056,2941.8,2941.2,0.0051056]
[1766518966845,0.94979883,2941.8,2941.2,0.0051056]
[1766518967045,0.94979883,2941.8,2940.8,3.401]
[1766518967046,0.94469323,2941.6,2940.8,3.401]
[1766518967250,0.94469323,2941.4,2940.8,3.401]
[1766518967451,4.34569323,2941.6,2940.8,3.401]
[1766518967651,3.401,2941.6,2940.8,3.401]
[1766518968052,3.401,2941.6,2940.9,0.0051056]
[1766518971761,3.401,2941.6,2940.9,3.4061056]
[1766518972163,3.401,2941.6,2940.9,0.0041056]
[1766518972356,3.401,2941.6,2940.9,3.4051056]
[1766518974565,0.0051056,2941.8,2941.1,0.94469323]
[1766518975667,0.0051056,2941.8,2940.9,4.34979883]
[1766518975868,0.94469323,2941.6,2940.9,0.0041056]
[1766518976067,4.34569323,2941.6,2940.9,3.4051056]
[1766518978171,4.34569323,2941.6,2940.6,0.13979999]
[1766518978371,4.34569323,2941.6,2940.7,3.401]
[1766518978574,4.34569323,2941.6,2940.4,0.94469323]
[1766518978871,3.401,2941.6,2940.6,0.94469323]
[1766518979269,3.401,2941.6,2940.8,0.0051056]
[1766518979463,3.401,2941.6,2940.8,3.4061056]
[1766518981068,0.1751456,2941.8,2940.8,3.4061056]
[1766518981263,3.401,2941.7,2940.8,3.4061056]
[1766518984875,0.1751456,2941.8,2940.8,3.4061056]
[1766518985077,3.401,2941.7,2940.8,3.4061056]
[1766518985668,0.1751456,2941.8,2940.8,3.4061056]
[1766518985974,3.401,2941.7,2940.8,3.4061056]
[1766518988273,3.57105,2941.7,2940.9,3.401]
[1766518989179,3.401,2941.7,2940.3,5.621]
[1766518989367,0.17006,2941.5,2939.8,0.00393203]
[1766518989676,0.17009,2941.0,2939.8,0.00393203]
[1766518989976,3.401,2940.9,2939.9,3.401]
[1766518990173,3.401,2940.9,2940.1,0.0051056]
[1766518994472,3.401,2940.8,2940.1,0.0051056]
[1766518998492,0.17009,2941.0,2940.1,0.0051056]
[1766518998785,3.401,2940.8,2940.1,0.0051056]
[1766518998982,6.427,2941.6,2940.1,0.0051056]
[1766518999188,3.401,2941.5,2940.1,0.0051056]
[1766519000481,0.17007,2941.3,2940.1,0.0051056]
[1766519001782,3.401,2941.2,2940.1,0.0051056]
[1766519011396,3.401,2941.2,2940.2,3.433]
[1766519015998,0.17006,2941.5,2940.2,3.433]
[1766519016189,3.401,2941.4,2940.2,3.433]
[1766519021699,0.17006,2941.5,2940.2,3.433]
[1766519021898,3.401,2941.4,2940.2,3.433]
[1766519022696,3.401,2941.4,2940.1,0.0051056]
[1766519022898,3.401,2941.4,2940.2,3.58]
[1766519028305,3.57107,2941.4,2940.1,0.0051056]
[1766519028509,3.57107,2941.4,2940.2,3.401]
[1766519035208,3.57107,2941.4,2940.1,0.0051056]
[1766519035408,3.57107,2941.4,2940.2,3.401]
[1766519035709,0.17009,2941.1,2940.1,0.0051056]
[1766519035909,3.401,2941.0,2940.1,0.0051056]
[1766519037603,0.1701,2940.9,2940.1,0.0051056]
[1766519038204,6.5881,2940.9,2940.0,3.401]
[1766519042112,0.94514353,2940.8,2940.0,3.401]
[1766519042416,3.401,2940.7,2940.0,3.401]
[1766519044412,0.0036,2940.8,2940.0,3.401]
[1766519044708,0.1701,2940.9,2940.0,3.401]
[1766519044709,3.402,2940.7,2940.0,3.401]
[1766519045516,3.402,2940.7,2940.0,4.34614353]
[1766519046816,3.402,2940.8,2940.0,4.34614353]
[1766519049314,3.402,2940.8,2940.0,3.401]
[1766519049514,3.402,2940.8,2940.0,4.34614353]
[1766519053114,6.415,2941.1,2940.0,4.34614353]
[1766519053318,3.402,2941.0,2940.0,4.34614353]
[1766519053710,3.402,2941.0,2940.0,3.401]
[1766519055220,0.94514353,2940.9,2940.1,3.401]
[1766519055818,0.94514353,2940.7,2940.1,3.401]
[1766519056013,0.94514353,2940.7,2940.1,3.4]
[1766519056213,4.34614353,2940.7,2939.8,0.00393203]
[1766519056412,3.401,2940.7,2940.0,3.401]
[1766519060728,0.94514353,2940.9,2940.0,3.401]
[1766519060914,3.402,2940.8,2940.0,3.401]
[1766519064526,3.402,2940.8,2940.0,4.34614353]
[1766519068133,3.402,2940.8,2940.0,3.401]
[1766519074633,3.402,2940.8,2940.1,6.002]
[1766519079941,0.94514353,2940.3,2939.4,6.002]
[1766519080137,0.0051056,2940.1,2939.5,3.402]
[1766519081241,0.0051056,2940.1,2939.5,3.40628609]
[1766519084138,0.0051056,2940.1,2939.5,4.35142962]
[1766519085938,0.17012,2940.5,2939.5,4.35142962]
[1766519086139,3.402,2940.4,2939.5,4.35142962]
[1766519086839,0.0051056,2940.2,2939.7,0.0051056]
[1766519087040,5.6e-06,2940.2,2939.7,0.0051056]
[1766519087943,5.6e-06,2940.2,2939.8,3.402]
[1766519101547,0.94514353,2941.1,2939.9,6.94714353]
[1766519101949,3.402,2941.0,2939.9,6.002]
[1766519102462,0.0051056,2940.7,2939.9,6.002]